[Event "Titled Tuesday Blitz May 16 Early 2023"]
[White "Koellner, Ruben Gideon"]
[Black "Liu, Casper"]
[WhiteFideId "12993093"]
[BlackFideId "1454153"]
[WhiteElo "2314"]
[BlackElo "2221"]
[Result "1-0"]
[Round "04"]
[TimeControl "180+2"]
[Date "2023.05.16"]
[WhiteClock "0:01:45"]
[BlackClock "0:00:04"]

1. d4 {[%clk 0:03:00]}  c5 {[%clk 0:02:59]} 2. e3 {[%clk 0:03:01]}  cxd4 {[%clk 0:03:00]} 3. exd4 {[%clk 0:03:01]}  d5 {[%clk 0:03:00]} 4. Nf3 {[%clk 0:03:02]}  Nf6 {[%clk 0:03:00]} 5. c3 {[%clk 0:03:03]}  Bg4 {[%clk 0:03:00]} 6. Be2 {[%clk 0:03:03]}  e6 {[%clk 0:03:00]} 7. O-O {[%clk 0:03:03]}  Bd6 {[%clk 0:03:00]} 8. h3 {[%clk 0:03:04]}  Bh5 {[%clk 0:03:00]} 9. Ne5 {[%clk 0:03:02]}  Bxe2 {[%clk 0:02:57]} 10. Qxe2 {[%clk 0:03:03]}  O-O {[%clk 0:02:57]} 11. Nd2 {[%clk 0:03:03]}  Nc6 {[%clk 0:02:54]} 12. Ndf3 {[%clk 0:03:03]}  Ne4 {[%clk 0:02:50]} 13. Re1 {[%clk 0:03:02]}  f6 {[%clk 0:02:50]} 14. Nxc6 {[%clk 0:03:02]}  bxc6 {[%clk 0:02:51]} 15. Nd2 {[%clk 0:03:03]}  f5 {[%clk 0:02:43]} 16. f3 {[%clk 0:03:02]}  Ng3 {[%clk 0:02:37]} 17. Qxe6+ {[%clk 0:03:02]}  Kh8 {[%clk 0:02:38]} 18. Nf1 {[%clk 0:03:00]}  Re8 {[%clk 0:02:25]} 19. Qxe8+ {[%clk 0:02:58]}  Qxe8 {[%clk 0:02:26]} 20. Rxe8+ {[%clk 0:02:57]}  Rxe8 {[%clk 0:02:27]} 21. Bd2 {[%clk 0:02:56]}  c5 {[%clk 0:01:07]} 22. Nxg3 {[%clk 0:02:35]}  Bxg3 {[%clk 0:01:08]} 23. dxc5 {[%clk 0:02:35]}  Re2 {[%clk 0:01:08]} 24. Rd1 {[%clk 0:02:35]}  Kg8 {[%clk 0:01:08]} 25. Kf1 {[%clk 0:02:31]}  Rf2+ {[%clk 0:01:07]} 26. Kg1 {[%clk 0:02:32]}  Re2 {[%clk 0:01:08]} 27. b4 {[%clk 0:02:27]}  Kf7 {[%clk 0:01:08]} 28. a4 {[%clk 0:02:27]}  Ke6 {[%clk 0:01:07]} 29. b5 {[%clk 0:02:15]}  h6 {[%clk 0:00:23]} 30. a5 {[%clk 0:02:12]}  d4 {[%clk 0:00:14]} 31. cxd4 {[%clk 0:02:10]}  Kd5 {[%clk 0:00:15]} 32. a6 {[%clk 0:02:04]}  Kc4 {[%clk 0:00:04]} 33. b6 {[%clk 0:02:03]}  Kb5 {[%clk 0:00:01]} 34. bxa7 {[%clk 0:02:01]}  Re8 {[%clk 0:00:02]} 35. Rb1+ {[%clk 0:01:58]}  Kxa6 {[%clk 0:00:02]} 36. Ra1+ {[%clk 0:01:51]}  Kb7 {[%clk 0:00:02]} 37. c6+ {[%clk 0:01:51]}  Ka8 {[%clk 0:00:02]} 38. d5 {[%clk 0:01:49]}  Re7 {[%clk 0:00:02]} 39. Bb4 {[%clk 0:01:47]}  Rxa7 {[%clk 0:00:02]} 40. Rxa7+ {[%clk 0:01:44]}  Kxa7 {[%clk 0:00:03]} 41. d6 {[%clk 0:01:40]}  Kb6 {[%clk 0:00:01]} 42. d7 {[%clk 0:01:40]}  Bc7 {[%clk 0:00:02]} 43. Be7 {[%clk 0:01:40]}  Kxc6 {[%clk 0:00:02]} 44. d8=Q {[%clk 0:01:41]}  Bxd8 {[%clk 0:00:03]} 45. Bxd8 {[%clk 0:01:42]}  Kd5 {[%clk 0:00:04]} 46. Bh4 {[%clk 0:01:42]}  g5 {[%clk 0:00:04]} 47. Be1 {[%clk 0:01:43]}  f4 {[%clk 0:00:05]} 48. Kf1 {[%clk 0:01:44]}  Ke5 {[%clk 0:00:05]} 49. Ke2 {[%clk 0:01:44]}  Kf5 {[%clk 0:00:06]} 50. Bc3 {[%clk 0:01:45]}  h5 {[%clk 0:00:07]} 51. Kd3 {[%clk 0:01:45]}  g4 {[%clk 0:00:08]} 52. h4 {[%clk 0:01:44]}  gxf3 {[%clk 0:00:04]} 53. gxf3 {[%clk 0:01:45]} 1-0


[Site "https://www.chess.com"]

[Event "Titled Tuesday Blitz May 16 Early 2023"]
[White "Wadsworth, Matthew J"]
[Black "Bettalli, Francesco"]
[WhiteFideId "415804"]
[BlackFideId "2816453"]
[WhiteElo "2347"]
[BlackElo "2216"]
[Result "0-1"]
[Round "04"]
[TimeControl "180+2"]
[Date "2023.05.16"]
[WhiteClock "0:00:00"]
[BlackClock "0:01:04"]

1. c4 {[%clk 0:03:00]}  g6 {[%clk 0:02:46]} 2. g3 {[%clk 0:02:58]}  Bg7 {[%clk 0:02:47]} 3. Bg2 {[%clk 0:02:58]}  c6 {[%clk 0:02:46]} 4. d4 {[%clk 0:02:54]}  Nf6 {[%clk 0:02:43]} 5. Nf3 {[%clk 0:02:54]}  O-O {[%clk 0:02:43]} 6. O-O {[%clk 0:02:54]}  d5 {[%clk 0:02:44]} 7. Qb3 {[%clk 0:02:47]}  dxc4 {[%clk 0:02:44]} 8. Qxc4 {[%clk 0:02:47]}  Nbd7 {[%clk 0:02:45]} 9. Rd1 {[%clk 0:02:39]}  Nb6 {[%clk 0:02:45]} 10. Qb3 {[%clk 0:02:39]}  Be6 {[%clk 0:02:46]} 11. Qc2 {[%clk 0:02:39]}  Bf5 {[%clk 0:02:46]} 12. Qb3 {[%clk 0:02:38]}  Ne4 {[%clk 0:02:45]} 13. Nh4 {[%clk 0:02:35]}  Qc8 {[%clk 0:02:45]} 14. Nxf5 {[%clk 0:02:32]}  Qxf5 {[%clk 0:02:45]} 15. Qf3 {[%clk 0:02:32]}  Qxf3 {[%clk 0:02:42]} 16. Bxf3 {[%clk 0:02:33]}  Nd6 {[%clk 0:02:41]} 17. Nc3 {[%clk 0:02:26]}  Rad8 {[%clk 0:02:40]} 18. e3 {[%clk 0:02:26]}  Nf5 {[%clk 0:02:38]} 19. Bd2 {[%clk 0:02:23]}  Nc4 {[%clk 0:02:37]} 20. Be1 {[%clk 0:02:19]}  e5 {[%clk 0:02:34]} 21. dxe5 {[%clk 0:02:16]}  Bxe5 {[%clk 0:02:35]} 22. b3 {[%clk 0:02:10]}  Nb2 {[%clk 0:02:32]} 23. Rxd8 {[%clk 0:02:03]}  Rxd8 {[%clk 0:02:33]} 24. Rb1 {[%clk 0:02:00]}  Nd3 {[%clk 0:02:32]} 25. Ne4 {[%clk 0:01:20]}  Nxe1 {[%clk 0:02:25]} 26. Rxe1 {[%clk 0:01:19]}  Kg7 {[%clk 0:02:25]} 27. Nc5 {[%clk 0:01:07]}  Rd2 {[%clk 0:02:18]} 28. Nxb7 {[%clk 0:01:03]}  Rxa2 {[%clk 0:02:17]} 29. Bxc6 {[%clk 0:01:03]}  h5 {[%clk 0:02:16]} 30. h4 {[%clk 0:00:53]}  Nh6 {[%clk 0:01:57]} 31. Bf3 {[%clk 0:00:50]}  f6 {[%clk 0:01:56]} 32. Rd1 {[%clk 0:00:47]}  Nf7 {[%clk 0:01:45]} 33. Rd7 {[%clk 0:00:45]}  Kf8 {[%clk 0:01:45]} 34. Nc5 {[%clk 0:00:40]}  Nd6 {[%clk 0:01:41]} 35. Nd3 {[%clk 0:00:31]}  Nf7 {[%clk 0:01:39]} 36. Bd5 {[%clk 0:00:28]}  Nh6 {[%clk 0:01:38]} 37. Be6 {[%clk 0:00:24]}  Bc3 {[%clk 0:01:25]} 38. Rh7 {[%clk 0:00:21]}  Ng4 {[%clk 0:01:21]} 39. Bxg4 {[%clk 0:00:19]}  hxg4 {[%clk 0:01:22]} 40. Rc7 {[%clk 0:00:18]}  Bd2 {[%clk 0:01:17]} 41. b4 {[%clk 0:00:15]}  Ra3 {[%clk 0:01:17]} 42. Rd7 {[%clk 0:00:15]}  Ra2 {[%clk 0:01:14]} 43. b5 {[%clk 0:00:13]}  Ke8 {[%clk 0:01:13]} 44. Rd4 {[%clk 0:00:13]}  f5 {[%clk 0:01:13]} 45. Rd6 {[%clk 0:00:11]}  Kf7 {[%clk 0:01:11]} 46. Ne5+ {[%clk 0:00:11]}  Ke7 {[%clk 0:01:12]} 47. Rxg6 {[%clk 0:00:09]}  Be1 {[%clk 0:01:11]} 48. Nd3 {[%clk 0:00:09]}  Bc3 {[%clk 0:01:11]} 49. Ra6 {[%clk 0:00:10]}  Rxa6 {[%clk 0:01:10]} 50. bxa6 {[%clk 0:00:10]}  Kd6 {[%clk 0:01:11]} 51. h5 {[%clk 0:00:10]}  Kc6 {[%clk 0:01:11]} 52. f3 {[%clk 0:00:09]}  Kb6 {[%clk 0:01:08]} 53. e4 {[%clk 0:00:09]}  fxe4 {[%clk 0:01:08]} 54. fxe4 {[%clk 0:00:09]}  Bg7 {[%clk 0:01:08]} 55. Kf2 {[%clk 0:00:08]}  Kxa6 {[%clk 0:01:08]} 56. Ke3 {[%clk 0:00:07]}  Kb5 {[%clk 0:01:09]} 57. Nf2 {[%clk 0:00:06]}  a5 {[%clk 0:01:05]} 58. Nxg4 {[%clk 0:00:04]}  a4 {[%clk 0:01:06]} 59. h6 {[%clk 0:00:02]}  Bh8 {[%clk 0:01:03]} 60. e5 {[%clk 0:00:03]}  a3 {[%clk 0:01:04]} 61. e6 {[%clk 0:00:03]}  Kc6 {[%clk 0:01:03]} 62. e7 {[%clk 0:00:03]}  Kd7 {[%clk 0:01:04]} 63. Nf2 {[%clk 0:00:00]}  a2 {[%clk 0:01:04]} 0-1


[Site "https://www.chess.com"]

[Event "Titled Tuesday Blitz May 16 Early 2023"]
[White "Piesik, Piotr"]
[Black "Mika, Tomasz"]
[WhiteFideId "1136194"]
[BlackFideId "1132970"]
[WhiteElo "2299"]
[BlackElo "2179"]
[Result "1-0"]
[Round "04"]
[TimeControl "180+2"]
[Date "2023.05.16"]
[WhiteClock "0:01:43"]
[BlackClock "0:00:07"]

1. Nf3 {[%clk 0:02:48]}  d5 {[%clk 0:02:59]} 2. g3 {[%clk 0:02:48]}  Nf6 {[%clk 0:03:00]} 3. Bg2 {[%clk 0:02:49]}  e6 {[%clk 0:03:00]} 4. O-O {[%clk 0:02:49]}  Be7 {[%clk 0:03:01]} 5. d3 {[%clk 0:02:48]}  O-O {[%clk 0:03:01]} 6. Nbd2 {[%clk 0:02:49]}  c6 {[%clk 0:02:59]} 7. e4 {[%clk 0:02:49]}  Nbd7 {[%clk 0:02:56]} 8. Qe2 {[%clk 0:02:49]}  Qc7 {[%clk 0:02:48]} 9. Re1 {[%clk 0:02:45]}  dxe4 {[%clk 0:02:47]} 10. dxe4 {[%clk 0:02:45]}  b6 {[%clk 0:02:47]} 11. a4 {[%clk 0:02:44]}  a5 {[%clk 0:02:46]} 12. Rd1 {[%clk 0:02:43]}  Ba6 {[%clk 0:02:46]} 13. Qe1 {[%clk 0:02:44]}  Nc5 {[%clk 0:02:41]} 14. b3 {[%clk 0:02:43]}  Rfd8 {[%clk 0:02:37]} 15. Bb2 {[%clk 0:02:43]}  Rd7 {[%clk 0:02:26]} 16. Ne5 {[%clk 0:02:43]}  Rdd8 {[%clk 0:02:19]} 17. Ndc4 {[%clk 0:02:37]}  Rxd1 {[%clk 0:02:16]} 18. Rxd1 {[%clk 0:02:36]}  Rd8 {[%clk 0:02:13]} 19. f3 {[%clk 0:02:33]}  Nfd7 {[%clk 0:01:59]} 20. Bf1 {[%clk 0:02:29]}  Nxe5 {[%clk 0:01:55]} 21. Bxe5 {[%clk 0:02:28]}  Rxd1 {[%clk 0:01:31]} 22. Qxd1 {[%clk 0:02:29]}  Qd8 {[%clk 0:01:31]} 23. Qxd8+ {[%clk 0:02:28]}  Bxd8 {[%clk 0:01:30]} 24. Bd6 {[%clk 0:02:24]}  Nb7 {[%clk 0:01:09]} 25. Bb8 {[%clk 0:02:24]}  f6 {[%clk 0:01:02]} 26. Nxa5 {[%clk 0:02:05]}  Nxa5 {[%clk 0:00:40]} 27. Bxa6 {[%clk 0:02:04]}  c5 {[%clk 0:00:37]} 28. Bb5 {[%clk 0:01:56]}  Kf7 {[%clk 0:00:36]} 29. Kf2 {[%clk 0:01:52]}  Ke7 {[%clk 0:00:31]} 30. Bf4 {[%clk 0:01:51]}  e5 {[%clk 0:00:28]} 31. Bd2 {[%clk 0:01:51]}  Kd6 {[%clk 0:00:29]} 32. Ke2 {[%clk 0:01:49]}  g6 {[%clk 0:00:25]} 33. Kd3 {[%clk 0:01:49]}  Bc7 {[%clk 0:00:22]} 34. Bc4 {[%clk 0:01:48]}  Nc6 {[%clk 0:00:20]} 35. c3 {[%clk 0:01:47]}  Ne7 {[%clk 0:00:19]} 36. b4 {[%clk 0:01:46]}  cxb4 {[%clk 0:00:18]} 37. cxb4 {[%clk 0:01:46]}  Nc6 {[%clk 0:00:18]} 38. Bc3 {[%clk 0:01:46]}  Ke7 {[%clk 0:00:15]} 39. Bd5 {[%clk 0:01:45]}  Nd8 {[%clk 0:00:07]} 40. Kc4 {[%clk 0:01:43]} 1-0


[Site "https://www.chess.com"]

[Event "Titled Tuesday Blitz May 16 Early 2023"]
[White "vlajkovicS"]
[Black "Grossboss19"]
[WhiteElo "2597"]
[BlackElo "2445"]
[Result "1-0"]
[Round "04"]
[TimeControl "180+2"]
[Date "2023.05.16"]
[WhiteClock "0:01:44"]
[BlackClock "0:00:18"]

1. Nf3 {[%clk 0:03:00]}  d5 {[%clk 0:02:55]} 2. c4 {[%clk 0:02:59]}  c6 {[%clk 0:02:53]} 3. g3 {[%clk 0:03:00]}  Nf6 {[%clk 0:02:51]} 4. Bg2 {[%clk 0:03:00]}  g6 {[%clk 0:02:51]} 5. O-O {[%clk 0:03:00]}  Bg7 {[%clk 0:02:52]} 6. Nc3 {[%clk 0:03:01]}  O-O {[%clk 0:02:50]} 7. d4 {[%clk 0:03:01]}  dxc4 {[%clk 0:02:49]} 8. Ne5 {[%clk 0:03:01]}  Be6 {[%clk 0:02:45]} 9. e4 {[%clk 0:02:54]}  b5 {[%clk 0:02:38]} 10. d5 {[%clk 0:02:52]}  Bc8 {[%clk 0:02:14]} 11. Nxc6 {[%clk 0:02:49]}  Nxc6 {[%clk 0:02:12]} 12. dxc6 {[%clk 0:02:50]}  Qb6 {[%clk 0:02:00]} 13. e5 {[%clk 0:02:49]}  Ng4 {[%clk 0:01:58]} 14. Nd5 {[%clk 0:02:48]}  Qc5 {[%clk 0:01:57]} 15. b4 {[%clk 0:02:42]}  cxb3 {[%clk 0:01:51]} 16. axb3 {[%clk 0:02:42]}  Kh8 {[%clk 0:01:37]} 17. Ba3 {[%clk 0:02:42]}  Qxc6 {[%clk 0:01:36]} 18. Nxe7 {[%clk 0:02:42]}  Qb6 {[%clk 0:01:24]} 19. Bxa8 {[%clk 0:02:41]}  Bxe5 {[%clk 0:01:22]} 20. Nxc8 {[%clk 0:02:35]}  Rxc8 {[%clk 0:01:19]} 21. Qxg4 {[%clk 0:02:35]}  Rxa8 {[%clk 0:01:16]} 22. Qe4 {[%clk 0:02:34]}  Re8 {[%clk 0:01:14]} 23. Bb2 {[%clk 0:02:20]}  Bxb2 {[%clk 0:01:07]} 24. Qxe8+ {[%clk 0:02:20]}  Kg7 {[%clk 0:01:08]} 25. Rad1 {[%clk 0:02:19]}  Qf6 {[%clk 0:01:03]} 26. Qxb5 {[%clk 0:02:17]}  Bd4 {[%clk 0:01:00]} 27. Qc4 {[%clk 0:02:17]}  Bb6 {[%clk 0:01:00]} 28. Rd7 {[%clk 0:02:16]}  h5 {[%clk 0:00:59]} 29. Kg2 {[%clk 0:02:16]}  h4 {[%clk 0:00:59]} 30. Qe4 {[%clk 0:02:07]}  Qg5 {[%clk 0:00:37]} 31. Qf4 {[%clk 0:01:54]}  h3+ {[%clk 0:00:32]} 32. Kxh3 {[%clk 0:01:54]}  Qh5+ {[%clk 0:00:29]} 33. Kg2 {[%clk 0:01:51]}  g5 {[%clk 0:00:30]} 34. Qe5+ {[%clk 0:01:46]}  Kh7 {[%clk 0:00:29]} 35. Qf5+ {[%clk 0:01:45]}  Kg7 {[%clk 0:00:18]} 36. h4 {[%clk 0:01:44]} 1-0


[Site "https://www.chess.com"]

[Event "Titled Tuesday Blitz May 16 Early 2023"]
[White "Colbow, Collin"]
[Black "Fikiet, Alex"]
[WhiteFideId "16201132"]
[BlackFideId "2052717"]
[WhiteElo "2351"]
[BlackElo "2403"]
[Result "1-0"]
[Round "04"]
[TimeControl "180+2"]
[Date "2023.05.16"]
[WhiteClock "0:01:07"]
[BlackClock "0:01:47"]

1. d4 {[%clk 0:03:00]}  d5 {[%clk 0:02:58]} 2. Nc3 {[%clk 0:03:00]}  Nf6 {[%clk 0:02:53]} 3. Bf4 {[%clk 0:03:00]}  a6 {[%clk 0:02:47]} 4. e3 {[%clk 0:02:55]}  b5 {[%clk 0:02:45]} 5. g4 {[%clk 0:02:54]}  Bxg4 {[%clk 0:02:43]} 6. f3 {[%clk 0:02:46]}  Bh5 {[%clk 0:02:38]} 7. Qd2 {[%clk 0:02:42]}  e6 {[%clk 0:02:32]} 8. O-O-O {[%clk 0:02:41]}  Nbd7 {[%clk 0:02:31]} 9. Bg2 {[%clk 0:01:51]}  c5 {[%clk 0:02:28]} 10. dxc5 {[%clk 0:01:51]}  Nxc5 {[%clk 0:02:18]} 11. Nge2 {[%clk 0:01:44]}  b4 {[%clk 0:02:17]} 12. Nb1 {[%clk 0:01:44]}  Rc8 {[%clk 0:02:14]} 13. Nd4 {[%clk 0:01:28]}  Be7 {[%clk 0:02:00]} 14. Nb3 {[%clk 0:01:15]}  O-O {[%clk 0:01:54]} 15. Rhg1 {[%clk 0:01:08]}  Qa5 {[%clk 0:01:47]} 16. Nxa5 {[%clk 0:01:07]} 1-0


[Site "https://www.chess.com"]

[Event "Titled Tuesday Blitz May 16 Early 2023"]
[White "Itkis, Boris"]
[Black "Janaszak, Dawid"]
[WhiteFideId "1209167"]
[BlackFideId "1119206"]
[WhiteElo "2216"]
[BlackElo "2220"]
[Result "0-1"]
[Round "04"]
[TimeControl "180+2"]
[Date "2023.05.16"]
[WhiteClock "0:00:00"]
[BlackClock "0:01:32"]

1. c4 {[%clk 0:03:00]}  e6 {[%clk 0:02:59]} 2. Nf3 {[%clk 0:03:00]}  d5 {[%clk 0:03:00]} 3. g3 {[%clk 0:03:00]}  Nf6 {[%clk 0:02:55]} 4. Bg2 {[%clk 0:03:00]}  Be7 {[%clk 0:02:52]} 5. O-O {[%clk 0:03:00]}  O-O {[%clk 0:02:53]} 6. b3 {[%clk 0:03:00]}  b6 {[%clk 0:02:51]} 7. Bb2 {[%clk 0:03:00]}  Bb7 {[%clk 0:02:52]} 8. e3 {[%clk 0:03:00]}  c5 {[%clk 0:02:52]} 9. Qe2 {[%clk 0:03:00]}  Nc6 {[%clk 0:02:51]} 10. Ne1 {[%clk 0:02:59]}  d4 {[%clk 0:02:45]} 11. f4 {[%clk 0:02:54]}  Qc7 {[%clk 0:02:39]} 12. Na3 {[%clk 0:02:49]}  Rad8 {[%clk 0:02:22]} 13. g4 {[%clk 0:02:26]}  Nb4 {[%clk 0:02:08]} 14. g5 {[%clk 0:02:18]}  Ne8 {[%clk 0:01:46]} 15. Nb5 {[%clk 0:01:54]}  Qb8 {[%clk 0:01:45]} 16. a3 {[%clk 0:00:00]}  Nc6 {[%clk 0:01:32]} 0-1


[Site "https://www.chess.com"]

[Event "Titled Tuesday Blitz May 16 Early 2023"]
[White "Richter, Paul"]
[Black "Fan_Of_Chucky"]
[WhiteFideId "2046350"]
[WhiteElo "2554"]
[BlackElo "2359"]
[Result "0-1"]
[Round "04"]
[TimeControl "180+2"]
[Date "2023.05.16"]
[WhiteClock "0:00:02"]
[BlackClock "0:00:04"]

1. e4 {[%clk 0:03:00]}  c5 {[%clk 0:03:00]} 2. Nf3 {[%clk 0:03:00]}  Nc6 {[%clk 0:03:00]} 3. d4 {[%clk 0:03:00]}  cxd4 {[%clk 0:03:00]} 4. Nxd4 {[%clk 0:03:01]}  Nf6 {[%clk 0:03:01]} 5. Nc3 {[%clk 0:03:00]}  d6 {[%clk 0:03:02]} 6. Bg5 {[%clk 0:02:59]}  e6 {[%clk 0:03:00]} 7. Qd2 {[%clk 0:02:59]}  a6 {[%clk 0:03:00]} 8. O-O-O {[%clk 0:02:59]}  Be7 {[%clk 0:02:56]} 9. f4 {[%clk 0:02:58]}  Bd7 {[%clk 0:02:57]} 10. Be2 {[%clk 0:02:46]}  b5 {[%clk 0:02:53]} 11. Bf3 {[%clk 0:02:43]}  Rc8 {[%clk 0:02:40]} 12. Nxc6 {[%clk 0:01:48]}  Bxc6 {[%clk 0:02:37]} 13. e5 {[%clk 0:01:48]}  Bxf3 {[%clk 0:02:23]} 14. gxf3 {[%clk 0:01:23]}  dxe5 {[%clk 0:02:17]} 15. Qe3 {[%clk 0:01:18]}  Qc7 {[%clk 0:02:09]} 16. fxe5 {[%clk 0:01:08]}  Nd5 {[%clk 0:02:06]} 17. Rxd5 {[%clk 0:01:08]}  Bxg5 {[%clk 0:01:56]} 18. Qxg5 {[%clk 0:01:03]}  exd5 {[%clk 0:01:57]} 19. Qxg7 {[%clk 0:01:02]}  Rf8 {[%clk 0:01:55]} 20. Qxh7 {[%clk 0:01:01]}  d4 {[%clk 0:01:52]} 21. Nd5 {[%clk 0:00:38]}  Qxe5 {[%clk 0:01:48]} 22. Nb4 {[%clk 0:00:38]}  a5 {[%clk 0:01:28]} 23. Nd3 {[%clk 0:00:37]}  Rh8 {[%clk 0:01:24]} 24. Qxf7+ {[%clk 0:00:28]}  Kxf7 {[%clk 0:01:25]} 25. Nxe5+ {[%clk 0:00:28]}  Kf6 {[%clk 0:01:21]} 26. Ng4+ {[%clk 0:00:27]}  Kf5 {[%clk 0:01:20]} 27. Rd1 {[%clk 0:00:28]}  Rcd8 {[%clk 0:01:14]} 28. Rd3 {[%clk 0:00:26]}  Kf4 {[%clk 0:01:10]} 29. b3 {[%clk 0:00:26]}  Rh3 {[%clk 0:01:06]} 30. Kb2 {[%clk 0:00:19]}  Rxf3 {[%clk 0:01:03]} 31. Rxf3+ {[%clk 0:00:20]}  Kxf3 {[%clk 0:01:04]} 32. Ne5+ {[%clk 0:00:21]}  Ke4 {[%clk 0:00:53]} 33. Nc6 {[%clk 0:00:21]}  Ra8 {[%clk 0:00:50]} 34. h4 {[%clk 0:00:19]}  Ra6 {[%clk 0:00:39]} 35. Nd8 {[%clk 0:00:15]}  Rh6 {[%clk 0:00:27]} 36. Nb7 {[%clk 0:00:12]}  Kd5 {[%clk 0:00:21]} 37. Nxa5 {[%clk 0:00:11]}  Rxh4 {[%clk 0:00:21]} 38. a3 {[%clk 0:00:08]}  Rh2 {[%clk 0:00:21]} 39. Kb1 {[%clk 0:00:09]}  Ke4 {[%clk 0:00:16]} 40. Nb7 {[%clk 0:00:09]}  Ke3 {[%clk 0:00:13]} 41. Nc5 {[%clk 0:00:09]}  Kd2 {[%clk 0:00:09]} 42. a4 {[%clk 0:00:08]}  bxa4 {[%clk 0:00:08]} 43. bxa4 {[%clk 0:00:09]}  Kc3 {[%clk 0:00:08]} 44. Ne4+ {[%clk 0:00:07]}  Kb4 {[%clk 0:00:09]} 45. a5 {[%clk 0:00:05]}  Kxa5 {[%clk 0:00:09]} 46. Nc5 {[%clk 0:00:01]}  Kb4 {[%clk 0:00:09]} 47. Ne4 {[%clk 0:00:02]}  Re2 {[%clk 0:00:06]} 48. Ng3 {[%clk 0:00:01]}  Re3 {[%clk 0:00:05]} 49. Nf5 {[%clk 0:00:01]}  Re4 {[%clk 0:00:05]} 50. Kb2 {[%clk 0:00:01]}  Rf4 {[%clk 0:00:03]} 51. Nd6 {[%clk 0:00:02]}  Rf2 {[%clk 0:00:03]} 52. Nb7 {[%clk 0:00:02]}  d3 {[%clk 0:00:03]} 53. Kb1 {[%clk 0:00:03]}  dxc2+ {[%clk 0:00:03]} 54. Kc1 {[%clk 0:00:02]}  Kc3 {[%clk 0:00:04]} 55. Na5 {[%clk 0:00:02]}  Rf1# {[%clk 0:00:04]} 0-1


[Site "https://www.chess.com"]

[Event "Titled Tuesday Blitz May 16 Early 2023"]
[White "Demin, Vladimir"]
[Black "Thiel, Thomas"]
[WhiteFideId "4167457"]
[BlackFideId "4615964"]
[WhiteElo "2544"]
[BlackElo "2201"]
[Result "1-0"]
[Round "04"]
[TimeControl "180+2"]
[Date "2023.05.16"]
[WhiteClock "0:01:34"]
[BlackClock "0:00:54"]

1. d4 {[%clk 0:02:54]}  Nf6 {[%clk 0:02:58]} 2. Nc3 {[%clk 0:02:53]}  d5 {[%clk 0:02:56]} 3. Bf4 {[%clk 0:02:53]}  c6 {[%clk 0:02:54]} 4. e3 {[%clk 0:02:53]}  Bf5 {[%clk 0:02:53]} 5. f3 {[%clk 0:02:52]}  h6 {[%clk 0:02:52]} 6. g4 {[%clk 0:02:52]}  Bh7 {[%clk 0:02:50]} 7. h4 {[%clk 0:02:52]}  Nbd7 {[%clk 0:02:46]} 8. Bd3 {[%clk 0:02:50]}  Bxd3 {[%clk 0:02:42]} 9. Qxd3 {[%clk 0:02:51]}  e6 {[%clk 0:02:28]} 10. O-O-O {[%clk 0:02:50]}  Bb4 {[%clk 0:02:26]} 11. Nge2 {[%clk 0:02:49]}  Qe7 {[%clk 0:02:22]} 12. e4 {[%clk 0:02:49]}  Bxc3 {[%clk 0:02:13]} 13. Nxc3 {[%clk 0:02:47]}  O-O-O {[%clk 0:02:12]} 14. exd5 {[%clk 0:02:24]}  Nxd5 {[%clk 0:02:07]} 15. Nxd5 {[%clk 0:02:23]}  exd5 {[%clk 0:02:02]} 16. Rde1 {[%clk 0:02:14]}  Qf6 {[%clk 0:02:01]} 17. Bg3 {[%clk 0:02:02]}  Rde8 {[%clk 0:01:59]} 18. Qc3 {[%clk 0:01:39]}  Re6 {[%clk 0:01:32]} 19. Qa5 {[%clk 0:01:35]}  b6 {[%clk 0:00:54]} 20. Qxa7 {[%clk 0:01:34]} 1-0


[Site "https://www.chess.com"]

[Event "Titled Tuesday Blitz May 16 Early 2023"]
[White "Avazkhonov, Alikhon"]
[Black "Smirnov, Pavel"]
[WhiteFideId "14208504"]
[BlackFideId "4123425"]
[WhiteElo "1739"]
[BlackElo "2520"]
[Result "1-0"]
[Round "04"]
[TimeControl "180+2"]
[Date "2023.05.16"]
[WhiteClock "0:01:29"]
[BlackClock "0:01:47"]

1. e4 {[%clk 0:02:56]}  e5 {[%clk 0:02:52]} 2. Nf3 {[%clk 0:02:55]}  Nc6 {[%clk 0:02:51]} 3. Bb5 {[%clk 0:02:56]}  a6 {[%clk 0:02:51]} 4. Ba4 {[%clk 0:02:56]}  Nf6 {[%clk 0:02:51]} 5. O-O {[%clk 0:02:57]}  Be7 {[%clk 0:02:51]} 6. Re1 {[%clk 0:02:56]}  b5 {[%clk 0:02:52]} 7. Bb3 {[%clk 0:02:56]}  O-O {[%clk 0:02:53]} 8. a4 {[%clk 0:02:56]}  b4 {[%clk 0:02:52]} 9. d3 {[%clk 0:02:56]}  d6 {[%clk 0:02:53]} 10. Nbd2 {[%clk 0:02:56]}  Na5 {[%clk 0:02:53]} 11. Ba2 {[%clk 0:02:56]}  c5 {[%clk 0:02:54]} 12. Nf1 {[%clk 0:02:52]}  Be6 {[%clk 0:02:53]} 13. Ne3 {[%clk 0:02:50]}  Bxa2 {[%clk 0:02:48]} 14. Rxa2 {[%clk 0:02:51]}  Re8 {[%clk 0:02:48]} 15. c4 {[%clk 0:02:46]}  bxc3 {[%clk 0:02:44]} 16. bxc3 {[%clk 0:02:46]}  Rb8 {[%clk 0:02:44]} 17. Qc2 {[%clk 0:02:46]}  Bf8 {[%clk 0:02:42]} 18. Bd2 {[%clk 0:02:46]}  Qd7 {[%clk 0:02:39]} 19. Rb1 {[%clk 0:02:46]}  Nc6 {[%clk 0:02:31]} 20. Rab2 {[%clk 0:02:44]}  Qc7 {[%clk 0:02:28]} 21. c4 {[%clk 0:02:25]}  a5 {[%clk 0:02:23]} 22. Nd5 {[%clk 0:02:04]}  Nxd5 {[%clk 0:02:21]} 23. cxd5 {[%clk 0:02:05]}  Nb4 {[%clk 0:02:22]} 24. Bxb4 {[%clk 0:02:06]}  axb4 {[%clk 0:02:20]} 25. Rxb4 {[%clk 0:02:06]}  Rxb4 {[%clk 0:02:19]} 26. Rxb4 {[%clk 0:02:07]}  Qa7 {[%clk 0:02:20]} 27. Rb5 {[%clk 0:02:04]}  Ra8 {[%clk 0:02:20]} 28. a5 {[%clk 0:02:04]}  Be7 {[%clk 0:02:20]} 29. Nd2 {[%clk 0:02:03]}  Qa6 {[%clk 0:02:18]} 30. Qb1 {[%clk 0:01:38]}  Bd8 {[%clk 0:02:16]} 31. Nc4 {[%clk 0:01:37]}  Bc7 {[%clk 0:02:10]} 32. Rb7 {[%clk 0:01:34]}  Bxa5 {[%clk 0:01:50]} 33. Nxa5 {[%clk 0:01:29]}  Qxa5 {[%clk 0:01:47]} 34. Rb8+ {[%clk 0:01:29]} 1-0


[Site "https://www.chess.com"]